[Event "NY Presidents Day GM-A 2024"]
[Site "New York"]
[Date "2024.02.17"]
[Round "4.2"]
[White "Mandizha, Farai"]
[Black "Rorrer, Grayson"]
[Result "1/2-1/2"]
[ECO "A11"]
[WhiteElo "2367"]
[BlackElo "2396"]
[Annotator "TA"]
[PlyCount "122"]
[EventDate "2024.02.14"]
[EventType "tourn"]
[EventCountry "USA"]
[SourceTitle "playchess.com"]
[Source "ChessBase"]
[SourceQuality "1"]
[TimeControl "5400+30"]

{[%evp 47,122,-27,-25,-47,-27,-19,0,-8,0,-52,-29,-82,-14,-21,-14,-73,-16,-22,0,0,8,12,29,15,50,35,17,19,18,20,18,19,19,20,21,26,105,110,193,186,420,416,800,738,1466,712,1395,1284,1284,813,1164,0,0,0,8,8,8,8,8,8,8,8,8,8,8,8,8,8,8,8,8,8,8,8,8,0,0]} 1. Nf3 {[%emt 0:13:39]} Nf6 {[%emt 0:00:12]} 2. g3 {[%emt 0:00:08]} d5 {[%emt 0:00:07]} 3. Bg2 {[%emt 0:00:06]} c6 {[%emt 0:00:06]} 4. O-O {[%emt 0:00:11]} Bg4 {[%emt 0:00:08]} 5. Ne5 {[%emt 0:00:17]} Bf5 {[%emt 0:01:04]} 6. c4 {[%emt 0:07:31]} e6 {[%emt 0:00:35]} 7. d4 {[%emt 0:02:20]} Be7 {[%emt 0:01:59]} 8. Nc3 {[%emt 0:02:33] A11: English Opening: 1...c6.} O-O {[%emt 0:02:23]} 9. f3 {[%emt 0:02:19]} Nfd7 {[%emt 0:08:55]} 10. e4 $146 {[%emt 0:05:57]} ({Predecessor:} 10. Nxd7 Qxd7 11. e4 Bg6 12. cxd5 cxd5 13. exd5 exd5 14. f4 Nc6 15. Nxd5 Rad8 16. Be3 {0-1 Kornilov,P (2013)-Sarana,A (2355) Voronezh op-A 18th 2014 (1)}) 10... Nxe5 {[%emt 0:01:31]} 11. cxd5 {[%emt 0:01:40]} exd5 {[%emt 0:00:49]} 12. exf5 {[%emt 0:01:01]} Nc4 {[%emt 0:00:13]} 13. b3 {[%emt 0:01:34]} Nd6 {[%emt 0:01:06]} 14. g4 {[%emt 0:00:13]} Re8 {[%emt 0:06:47]} 15. Re1 {[%emt 0:03:43]} Na6 {[%emt 0:05:09]} 16. Bf4 {[%emt 0:04:35]} Qd7 {[%emt 0:02:40]} 17. Qd2 {[%emt 0:02:25]} Bh4 {[%emt 0:07:47]} 18. Re5 {[%emt 0:01:30]} f6 {[%emt 0:08:57]} 19. Re2 {[%emt 0:00:07]} Nf7 {[%emt 0:03:17]} 20. Be3 {[%emt 0:02:08]} Re7 {[%emt 0:06:13]} 21. Rf1 {[%emt 0:03:25]} Rae8 {[%emt 0:01:13]} 22. f4 {[%emt 0:01:41]} g5 {[%emt 0:05:12]} 23. fxg6 {[%emt 0:06:58]} hxg6 {[%emt 0:00:13]} 24. Bf3 {[%emt 0:03:39]} Kg7 {[%emt 0:04:30]} 25. Bf2 {[%emt 0:04:29]} Bxf2+ {[%emt 0:02:00]} 26. Rfxf2 {[%emt 0:00:02]} Nd6 {[%emt 0:00:12]} 27. Rxe7+ {[%emt 0:02:56]} Rxe7 {[%emt 0:00:18]} 28. h3 {[%emt 0:07:16]} (28. f5 $11) 28... Nc7 {[%emt 0:03:41]} 29. Re2 {[%emt 0:01:33]} (29. f5 $1 $11) 29... Ndb5 {[%emt 0:03:05]} (29... Kf8 $17) 30. Rxe7+ {[%emt 0:00:38]} Qxe7 {[%emt 0:00:09]} 31. Ne2 {[%emt 0:19:26]} (31. Nxb5 $11 Nxb5 32. Kg2) 31... Ne6 {[%emt 0:02:22]} (31... Nd6 $17) 32. Kg2 {[%emt 0:00:00]} f5 {[%emt 0:03:08]} 33. Qe3 {[%emt 0:00:00]} Qd6 {[%emt 0:06:52]} 34. h4 {[%emt 0:00:00]} b6 {[%emt 0:03:41]} 35. b4 {[%emt 0:00:00]} Kf7 {[%emt 0:03:10]} 36. h5 {[%emt 0:00:00]} gxh5 {[%emt 0:01:26]} 37. gxf5 {[%emt 0:00:49]} Ng7 {[%emt 0:00:20]} 38. a4 {[%emt 0:00:27]} (38. Qe5 {simplifies} Qxe5 39. dxe5 Nxf5 40. Bxh5+ Ke7 41. a4) 38... Nc7 {[%emt 0:00:15]} 39. Qe5 {[%emt 0:00:36]} Qxe5 {[%emt 0:02:46]} 40. dxe5 {[%emt 0:00:01]} Nxf5 {[%emt 0:00:13]} 41. Bxh5+ {[%emt 0:00:05]} Ke7 {[%emt 0:00:11]} (41... Kg7 $11 {keeps the balance.}) 42. Bg4 $16 {[%emt 0:00:56]} Ne3+ {[%emt 0:00:34]} (42... Nh6 $16 43. Kf3 Nxg4 44. Kxg4 c5) 43. Kf3 $18 {[%emt 0:00:02]} Nc2 $2 {[%emt 0:01:09]} (43... Nxg4 44. Kxg4 c5) 44. f5 $18 {[%emt 0:00:49]} Nxb4 {[%emt 0:01:30] [#]} (44... Kf7 $142 45. Kf4 Kg8 (45... Nxb4 $2 46. f6 $18)) 45. f6+ $1 $18 {[%emt 0:00:20]} Kd8 {[%emt 0:02:14]} 46. e6 {[%emt 0:01:11]} (46. Nf4 $142 Nc2 47. e6 Nd4+ 48. Kg3 Ncxe6 49. Bxe6 (49. Nxe6+ Nxe6 50. Bxe6 a6 $18) 49... Nxe6 50. Nxe6+ Ke8 51. Kf4) 46... Nd3 {[%emt 0:00:30]} 47. e7+ {[%emt 0:01:11]} Ke8 {[%emt 0:00:02]} 48. Bh5+ {[%emt 0:00:18]} Kd7 {[%emt 0:00:04]} 49. Bg4+ $2 {[%emt 0:00:38]} ({White should play} 49. Nd4 $18 a6 50. Ke3) 49... Kd6 $11 {[%emt 0:00:52]} 50. Bh5 {[%emt 0:00:07]} Ke6 {[%emt 0:01:38]} 51. Nd4+ {[%emt 0:00:27]} (51. e8=Q+ Nxe8 52. Bxe8 Kxf6) 51... Kxf6 {[%emt 0:00:04]} 52. Nxc6 {[%emt 0:00:08]} (52. e8=B c5 53. Ke3 Nb4 $15) 52... Ne5+ {[%emt 0:00:56]} 53. Nxe5 {[%emt 0:00:02]} Kxe5 {[%emt 0:00:06]} (53... Kxe7 {simplifies} 54. Nc6+ Kd6 55. Nxa7 Kc5) 54. Ke3 {[%emt 0:00:18]} (54. e8=Q+ {simplifies} Nxe8 55. Bxe8 a6 56. Bf7) 54... Kd6 {[%emt 0:00:13]} 55. e8=Q {[%emt 0:00:09]} Nxe8 {[%emt 0:00:03]} 56. Bxe8 {[%emt 0:00:02]} Kc5 $1 {[%emt 0:00:05]} 57. Kd3 {[%emt 0:00:09]} Kb4 {[%emt 0:00:07]} 58. Kd4 {[%emt 0:00:10]} a6 {[%emt 0:00:04]} 59. Kxd5 {[%emt 0:00:13]} b5 {[%emt 0:00:03]} 60. axb5 {[%emt 0:01:20]} axb5 {[%emt 0:00:04]} ({Of course not} 60... Ka5 $6 61. Kd4 $16 (61. Kc4 axb5+ 62. Kb3 b4 $16)) 61. Bxb5 {[%emt 0:00:08]} Kxb5 {[%emt 0:00:02]} 1/2-1/2

[Event "NY Presidents Day GM-A 2024"]
[Site "New York"]
[Date "2024.02.17"]
[Round "4.3"]
[White "Lenderman, Aleksandr"]
[Black "Yu, Jiangwei"]
[Result "1/2-1/2"]
[ECO "A11"]
[WhiteElo "2521"]
[BlackElo "2357"]
[Annotator "RC"]
[PlyCount "67"]
[EventDate "2024.02.14"]
[EventType "tourn"]
[EventCountry "USA"]
[SourceTitle "playchess.com"]
[Source "ChessBase"]
[SourceQuality "1"]
[TimeControl "5400+30"]

1. c4 {[%emt 0:00:31]} c6 {[%emt 0:02:24]} 2. Nf3 {[%emt 0:00:06]} d5 {[%emt 0:00:19]} 3. g3 {[%emt 0:00:06]} Bg4 {[%emt 0:00:42]} 4. Bg2 {[%emt 0:01:55]} e6 {[%emt 0:00:15]} 5. O-O {[%emt 0:01:27]} Nf6 {[%emt 0:01:43]} 6. Qb3 {[%emt 0:01:21]} Qb6 {[%emt 0:01:00]} 7. d3 {[%emt 0:00:10]} Nbd7 {[%emt 0:01:49]} 8. Be3 {[%emt 0:00:19]} Bc5 {[%emt 0:02:09]} 9. Bxc5 {[%emt 0:00:15]} Nxc5 {[%emt 0:00:08]} 10. Qa3 {[%emt 0:00:53]} O-O {[%emt 0:00:59]} 11. Rc1 {[%emt 0:01:34]} Rfc8 {[%emt 0:01:42]} 12. Nbd2 {[%emt 0:01:17]} a5 {[%emt 0:08:34]} 13. Qc3 {[%emt 0:00:48]} Qb4 {[%emt 0:02:52]} 14. h3 {[%emt 0:04:01]} Bxf3 {[%emt 0:00:16]} 15. Bxf3 {[%emt 0:02:30]} e5 {[%emt 0:08:47]} 16. d4 {[%emt 0:07:49]} exd4 {[%emt 0:01:38]} 17. Qxd4 {[%emt 0:00:46]} Ne6 {[%emt 0:01:03]} 18. Qc3 {[%emt 0:01:52]} Rc7 {[%emt 0:13:09]} 19. Qxb4 {[%emt 0:04:44]} axb4 {[%emt 0:00:01]} 20. cxd5 {[%emt 0:00:10]} cxd5 {[%emt 0:01:07]} 21. Rxc7 {[%emt 0:00:49]} Nxc7 {[%emt 0:00:02]} 22. Nb3 {[%emt 0:00:26]} Ne6 {[%emt 0:00:24]} 23. Bg4 {[%emt 0:05:37]} Rc8 {[%emt 0:12:07]} 24. Bxe6 {[%emt 0:02:49]} fxe6 {[%emt 0:00:03]} 25. Rc1 {[%emt 0:00:13]} Rc4 {[%emt 0:21:41]} 26. f3 {[%emt 0:10:36]} b5 {[%emt 0:03:33]} 27. Kf2 {[%emt 0:01:59]} e5 {[%emt 0:02:08]} 28. e3 {[%emt 0:03:19]} Nd7 {[%emt 0:01:41]} 29. Ke2 {[%emt 0:03:36]} Kf7 {[%emt 0:01:16]} 30. Kd2 {[%emt 0:02:25]} Ke6 {[%emt 0:03:50]} 31. Ra1 {[%emt 0:00:02]} Nb6 {[%emt 0:01:07]} 32. Nc1 {[%emt 0:00:58]} Rc7 {[%emt 0:01:47]} 33. Nd3 {[%emt 0:02:43]} e4 {[%emt 0:00:42]} 34. fxe4 {[%emt 0:39:24]} 1/2-1/2

[Event "NY Presidents Day GM-A 2024"]
[Site "New York"]
[Date "2024.02.17"]
[Round "4.4"]
[White "Eidelman, Gabriel"]
[Black "Novik, Maxim"]
[Result "1/2-1/2"]
[ECO "D04"]
[WhiteElo "2343"]
[BlackElo "2399"]
[Annotator "TA"]
[PlyCount "47"]
[EventDate "2024.02.14"]
[EventType "tourn"]
[EventCountry "USA"]
[SourceTitle "playchess.com"]
[Source "ChessBase"]
[SourceQuality "1"]
[TimeControl "5400+30"]

{[%evp 10,47,11,12,27,1,23,7,24,18,30,9,2,1,13,0,35,29,24,15,25,13,26,18,43,33,54,0,0,0,0,-15,0,0,0,0,0,0,0,0]} 1. d4 {[%emt 0:02:12]} Nf6 {[%emt 0:01:03]} 2. Nf3 {[%emt 0:00:09]} g6 {[%emt 0:00:31]} 3. Nbd2 {[%emt 0:00:10]} d5 {[%emt 0:01:23]} 4. b3 {[%emt 0:00:13]} Bg7 {[%emt 0:00:10]} 5. Bb2 {[%emt 0:00:07]} O-O {[%emt 0:01:14]} 6. e3 {[%emt 0:00:20]} a5 {[%emt 0:02:31]} 7. a4 {[%emt 0:03:16]} c6 {[%emt 0:02:34]} 8. Be2 {[%emt 0:03:07]} Na6 {[%emt 0:01:02]} 9. Ne5 {[%emt 0:06:09]} Nd7 {[%emt 0:01:36]} 10. Nd3 {[%emt 0:11:32]} Re8 {[%emt 0:04:52]} 11. c4 {[%emt 0:06:42]} Nb6 {[%emt 0:05:05][%cal Oc6c5]} 12. cxd5 {[%emt 0:08:32]} cxd5 {[%emt 0:01:55]} 13. O-O {[%emt 0:01:25]} Bf5 {[%emt 0:02:00]} 14. Nb1 {[%emt 0:04:57]} Bxd3 {[%emt 0:03:58]} 15. Bxd3 {[%emt 0:00:37]} Nc8 {[%emt 0:00:27]} 16. Na3 {[%emt 0:10:00]} Nd6 {[%emt 0:00:10]} 17. Nb5 {[%emt 0:01:01]} Nb4 {[%emt 0:00:32]} 18. Nxd6 {[%emt 0:06:20]} (18. Rc1 $14) 18... Qxd6 $11 {[%emt 0:00:08] The position is equal.} 19. Qd2 {[%emt 0:01:41]} Rec8 {[%emt 0:00:30]} 20. Rac1 {[%emt 0:04:26]} e6 {[%emt 0:00:15]} 21. Bb5 {[%emt 0:01:43]} Bf8 {[%emt 0:00:25]} 22. Rxc8 {[%emt 0:04:05]} Rxc8 {[%emt 0:00:07]} 23. Rc1 {[%emt 0:00:06] Prevents Rc2.} Qd8 {[%emt 0:00:48]} 24. g3 {[%emt 0:02:26] Weighted Error Value: White=0.10 (very precise) /Black=0.10 (very precise) .  Mistake:       	White=1     	---        Inaccurate:     	White=1     	Black=1      OK:         	White=4     	Black=3      Best:        	---       	Black=1} 1/2-1/2

[Event "NY Presidents Day GM-A 2024"]
[Site "New York"]
[Date "2024.02.17"]
[Round "4.5"]
[White "Paragua, Mark"]
[Black "Griffith, Kyron"]
[Result "1/2-1/2"]
[ECO "E08"]
[WhiteElo "2448"]
[BlackElo "2367"]
[Annotator "TA"]
[PlyCount "31"]
[EventDate "2024.02.14"]
[EventType "tourn"]
[EventCountry "USA"]
[SourceTitle "playchess.com"]
[Source "ChessBase"]
[SourceQuality "1"]
[TimeControl "5400+30"]

{[%evp 15,31,18,26,0,0,-29,-31,-44,-27,-39,32,34,30,27,45,16,16,2]} 1. Nf3 {[%emt 0:09:08]} Nf6 {[%emt 0:00:07]} 2. c4 {[%emt 0:00:14]} e6 {[%emt 0:00:08]} 3. g3 {[%emt 0:00:07]} d5 {[%emt 0:00:10]} 4. Bg2 {[%emt 0:00:06]} Be7 {[%emt 0:00:43]} 5. O-O {[%emt 0:00:08]} O-O {[%emt 0:00:06]} 6. d4 {[%emt 0:00:03]} Nbd7 {[%emt 0:00:33]} 7. Qc2 {[%emt 0:00:17]} c6 {[%emt 0:00:18]} 8. b3 {[%emt 0:00:37]} b6 {[%emt 0:00:26]} 9. Bf4 {[%emt 0:00:32]} Bb7 {[%emt 0:00:14]} 10. Ne5 {[%emt 0:00:28]} Nxe5 {[%emt 0:00:17]} 11. Bxe5 {[%emt 0:00:12] Black is slightly better.} Rc8 {[%emt 0:00:15]} (11... Ng4 {seems wilder.} 12. Bf4 dxc4 13. Rd1 cxb3 14. axb3 Qc8) 12. Rd1 {[%emt 0:01:00]} Bd6 {[%emt 0:00:24]} ({Black should try} 12... Qe8 $15) 13. Bxd6 $14 {[%emt 0:00:06]} Qxd6 {[%emt 0:00:04]} 14. Nc3 {[%emt 0:00:08]} h6 {[%emt 0:00:49]} 15. Rac1 {[%emt 0:00:09]} Rfd8 {[%emt 0:00:16]} 16. e3 {[%emt 0:00:06] Weighted Error Value: White=0.13 (very precise) /Black=0.20 (precise) .  Mistake:       	---       	Black=1      Inaccurate:     	White=2     	---        OK:         	White=3     	Black=2} 1/2-1/2

[Event "NY Presidents Day GM-A 2024"]
[Site "New York"]
[Date "2024.02.18"]
[Round "5.1"]
[White "Griffith, Kyron"]
[Black "Lu, Maximillian"]
[Result "0-1"]
[ECO "B53"]
[WhiteElo "2367"]
[BlackElo "2371"]
[Annotator "RC"]
[PlyCount "94"]
[EventDate "2024.02.14"]
[EventType "tourn"]
[EventCountry "USA"]
[SourceTitle "playchess.com"]
[Source "ChessBase"]
[SourceQuality "1"]
[TimeControl "5400+30"]

1. e4 {[%emt 0:01:51]} c5 {[%emt 0:00:42]} 2. Nf3 {[%emt 0:00:19]} d6 {[%emt 0:00:08]} 3. d4 {[%emt 0:00:06]} cxd4 {[%emt 0:00:12]} 4. Qxd4 {[%emt 0:00:07]} Nc6 {[%emt 0:02:00]} 5. Qd3 {[%emt 0:00:07]} f5 {[%emt 0:03:44]} 6. exf5 {[%emt 0:03:14]} Qa5+ {[%emt 0:00:39]} 7. Bd2 {[%emt 0:01:32]} Qxf5 {[%emt 0:00:15]} 8. Na3 {[%emt 0:04:19]} Nf6 {[%emt 0:03:54]} 9. Nb5 {[%emt 0:03:39]} Rb8 {[%emt 0:00:17]} 10. O-O-O {[%emt 0:08:55]} a6 {[%emt 0:06:47]} 11. Nbd4 {[%emt 0:02:47]} Qxd3 {[%emt 0:04:26]} 12. Bxd3 {[%emt 0:00:05]} Ng4 {[%emt 0:11:29]} 13. Rdf1 {[%emt 0:03:36]} g6 {[%emt 0:05:44]} 14. h4 {[%emt 0:11:09]} Bg7 {[%emt 0:06:02]} 15. Nb3 {[%emt 0:09:59]} b5 {[%emt 0:09:04]} 16. Kb1 {[%emt 0:06:46]} Nce5 {[%emt 0:16:54]} 17. Nxe5 {[%emt 0:00:36]} Nxe5 {[%emt 0:00:02]} 18. Bc3 {[%emt 0:01:30]} O-O {[%emt 0:00:43]} 19. Be4 {[%emt 0:05:19]} Be6 {[%emt 0:01:43]} 20. f4 {[%emt 0:02:15]} Bc4 {[%emt 0:01:45]} 21. Re1 {[%emt 0:04:32]} Rxf4 {[%emt 0:00:44]} 22. h5 {[%emt 0:00:31]} Ng4 {[%emt 0:05:13]} 23. Bxg7 {[%emt 0:02:55]} Kxg7 {[%emt 0:00:01]} 24. g3 {[%emt 0:00:17]} Rff8 {[%emt 0:02:00]} 25. hxg6 {[%emt 0:01:53]} hxg6 {[%emt 0:00:02]} 26. Na5 {[%emt 0:00:49]} Nf2 {[%emt 0:01:20]} 27. Rh4 {[%emt 0:00:19]} Bg8 {[%emt 0:01:01]} 28. Bg2 {[%emt 0:01:30]} e5 {[%emt 0:00:33]} 29. a4 {[%emt 0:00:19]} e4 {[%emt 0:02:42]} 30. axb5 {[%emt 0:03:21]} Rxb5 {[%emt 0:02:11]} 31. Nc6 {[%emt 0:00:17]} g5 {[%emt 0:01:05]} 32. Rh5 {[%emt 0:01:53]} Bf7 {[%emt 0:01:29]} 33. Rh2 {[%emt 0:00:06]} Bg6 {[%emt 0:02:10]} 34. Bf1 {[%emt 0:00:52]} Rd5 {[%emt 0:02:26]} 35. Ne7 {[%emt 0:07:14]} Rd2 {[%emt 0:00:02]} 36. Nxg6 {[%emt 0:00:16]} Kxg6 {[%emt 0:00:01]} 37. Bxa6 {[%emt 0:00:46]} d5 {[%emt 0:02:54]} 38. b4 {[%emt 0:01:06]} d4 {[%emt 0:02:07]} 39. b5 {[%emt 0:01:20]} e3 {[%emt 0:02:43]} 40. b6 {[%emt 0:01:46]} Rf6 {[%emt 0:02:33]} 41. b7 {[%emt 0:00:01]} Rb6+ {[%emt 0:00:00]} 42. Kc1 {[%emt 0:00:07]} Ne4 {[%emt 0:00:01]} 43. Bd3 {[%emt 0:03:38]} Rxh2 {[%emt 0:00:11]} 44. Bxe4+ {[%emt 0:00:03]} Kf6 {[%emt 0:00:37]} 45. c4 {[%emt 0:00:29]} Ke5 {[%emt 0:01:27]} 46. Bf3 {[%emt 0:02:08]} g4 {[%emt 0:00:26]} 47. Bd5 {[%emt 0:02:56]} d3 {[%emt 0:00:50]} 0-1

[Event "NY Presidents Day GM-A 2024"]
[Site "New York"]
[Date "2024.02.18"]
[Round "5.2"]
[White "Novik, Maxim"]
[Black "Paragua, Mark"]
[Result "1/2-1/2"]
[ECO "B22"]
[WhiteElo "2399"]
[BlackElo "2448"]
[Annotator "TA"]
[PlyCount "33"]
[EventDate "2024.02.14"]
[EventType "tourn"]
[EventCountry "USA"]
[SourceTitle "playchess.com"]
[Source "ChessBase"]
[SourceQuality "1"]
[TimeControl "5400+30"]

{[%evp 10,33,46,62,69,62,70,70,72,16,41,13,6,10,33,18,12,6,18,8,0,0,0,0,0,0]} 1. e4 {[%emt 0:00:56]} c5 {[%emt 0:01:52]} 2. c3 {[%emt 0:00:06]} g6 {[%emt 0:00:25]} 3. d4 {[%emt 0:00:13]} cxd4 {[%emt 0:00:08]} 4. cxd4 {[%emt 0:00:04]} d5 {[%emt 0:00:06]} 5. exd5 {[%emt 0:01:53]} Qxd5 {[%emt 0:00:14]} 6. Nc3 {[%emt 0:00:10]} Qd8 {[%emt 0:00:06]} 7. Bc4 {[%emt 0:04:05]} Bg7 {[%emt 0:00:57][%cal Oe7e6]} 8. Qb3 {[%emt 0:01:02]} e6 {[%emt 0:00:34][%cal Ob8c6] White is slightly better.} 9. Nf3 {[%emt 0:00:05]} ({White should play} 9. d5 $16) 9... Ne7 {[%emt 0:03:34]} 10. d5 {[%emt 0:04:10] Dodges Nbc6} exd5 {[%emt 0:01:46]} 11. Nxd5 {[%emt 0:02:46] [#] aiming for Bg5.} Nxd5 {[%emt 0:00:09]} 12. Bxd5 {[%emt 0:00:01]} O-O {[%emt 0:00:15] The position is equal.} 13. O-O {[%emt 0:00:14][%cal Of3g5] With the idea Ng5! Active counter play!} Nc6 {[%emt 0:00:22]} 14. Rd1 {[%emt 0:04:25][%cal Od5f7] Bxf7+! is the strong threat.} Qb6 {[%emt 0:01:14]} 15. Qxb6 {[%emt 0:03:13]} axb6 {[%emt 0:00:05]} 16. Be3 {[%emt 0:00:37]} Nb4 {[%emt 0:03:58]} 17. Bb3 {[%emt 0:12:28] Weighted Error Value: White=0.14 (very precise) /Black=0.05 (flawless) .  Mistake:       	White=1     	---        Inaccurate:     	White=1     	---        OK:         	White=4     	Black=6      Best:        	White=1     	---} 1/2-1/2

[Event "NY Presidents Day GM-A 2024"]
[Site "New York"]
[Date "2024.02.18"]
[Round "5.3"]
[White "Yu, Jiangwei"]
[Black "Eidelman, Gabriel"]
[Result "1/2-1/2"]
[ECO "E59"]
[WhiteElo "2357"]
[BlackElo "2343"]
[Annotator "TA"]
[PlyCount "61"]
[EventDate "2024.02.14"]
[EventType "tourn"]
[EventCountry "USA"]
[SourceTitle "playchess.com"]
[Source "ChessBase"]
[SourceQuality "1"]
[TimeControl "5400+30"]

{[%evp 22,61,4,0,0,24,0,0,-21,-5,-12,-8,-10,-12,-10,-1,-10,0,0,-2,-5,-9,-5,-83,-27,-33,-25,-21,-25,-20,0,0,0,0,0,0,0,0,0,0,14,13]} 1. d4 {[%emt 0:04:47]} Nf6 {[%emt 0:00:12]} 2. c4 {[%emt 0:00:24]} e6 {[%emt 0:00:06]} 3. Nc3 {[%emt 0:00:10]} Bb4 {[%emt 0:00:07]} 4. e3 {[%emt 0:00:15]} O-O {[%emt 0:00:08]} 5. Bd3 {[%emt 0:01:12]} d5 {[%emt 0:00:12]} 6. a3 {[%emt 0:00:07]} Bxc3+ {[%emt 0:00:08]} 7. bxc3 {[%emt 0:00:03]} dxc4 {[%emt 0:00:12]} 8. Bxc4 {[%emt 0:00:03]} c5 {[%emt 0:00:12]} 9. Nf3 {[%emt 0:00:12]} Qc7 {[%emt 0:00:13]} 10. Be2 {[%emt 0:00:05]} Nc6 {[%emt 0:00:27]} 11. O-O {[%emt 0:08:48]} e5 {[%emt 0:00:21]} 12. d5 {[%emt 0:16:35]} e4 $1 {[%emt 0:00:32]} 13. dxc6 {[%emt 0:02:11]} Ng4 {[%emt 0:00:11]} 14. h3 {[%emt 0:04:07]} exf3 {[%emt 0:00:42][%csl Gg4][%cal Rc7h2] [#]} 15. hxg4 {[%emt 0:00:05]} fxe2 {[%emt 0:00:27]} 16. Qxe2 {[%emt 0:00:08]} Qxc6 {[%emt 0:00:43]} 17. e4 {[%emt 0:05:16]} Qa4 {[%emt 0:06:37]} 18. Bg5 {[%emt 0:08:34]} b6 {[%emt 0:05:03]} 19. Rfd1 {[%emt 0:12:11]} Ba6 {[%emt 0:05:11]} 20. Qe3 {[%emt 0:01:19]} f6 {[%emt 0:08:44]} 21. Bf4 {[%emt 0:00:04]} Rad8 {[%emt 0:00:35]} 22. Bd6 {[%emt 0:01:44]} (22. Qe1 $11) 22... Rf7 {[%emt 0:15:34]} (22... Rfe8 $17 23. f3 Re6) 23. Rd2 $1 $11 {[%emt 0:02:13]} Rfd7 {[%emt 0:04:27]} 24. Rad1 {[%emt 0:00:06]} Bc4 {[%emt 0:05:14]} ({Much weaker is} 24... Qxa3 $6 25. g5 $16) 25. g5 {[%emt 0:08:06]} Bb3 {[%emt 0:17:37] The position is equal.} (25... Qxa3 $2 26. gxf6 Qa4 27. Qg5 $18) (25... fxg5 $5 26. e5 (26. Qxg5 Bb3 $15) 26... Be6 27. Qxg5 Qe4 $11) 26. Be7 {[%emt 0:00:24]} Rxd2 {[%emt 0:06:19]} (26... Rxe7 $2 {is the wrong capture.} 27. Rxd8+ Re8 28. R1d7 $18) 27. Rxd2 {[%emt 0:00:18]} Rxd2 {[%emt 0:00:07]} 28. Qxd2 {[%emt 0:00:03]} Kf7 {[%emt 0:06:56]} 29. gxf6 {[%emt 0:02:37]} Qxe4 {[%emt 0:02:01]} 30. Qg5 {[%emt 0:08:41]} Qg6 {[%emt 0:01:33]} 31. fxg7 {[%emt 0:00:08] Weighted Error Value: White=0.07 (flawless) /Black=0.07 (flawless) .  Mistake:       	White=1     	Black=1      OK:         	White=7     	Black=10     Best:        	White=2     	---        Strong:       	White=1     	---} 1/2-1/2

[Event "NY Presidents Day GM-A 2024"]
[Site "New York"]
[Date "2024.02.18"]
[Round "5.4"]
[White "Rorrer, Grayson"]
[Black "Lenderman, Aleksandr"]
[Result "1/2-1/2"]
[ECO "B94"]
[WhiteElo "2396"]
[BlackElo "2521"]
[Annotator "TA"]
[PlyCount "87"]
[EventDate "2024.02.14"]
[EventType "tourn"]
[EventCountry "USA"]
[SourceTitle "playchess.com"]
[Source "ChessBase"]
[SourceQuality "1"]
[TimeControl "5400+30"]

{[%evp 11,87,31,20,0,6,0,0,5,0,-7,0,0,0,0,7,0,0,0,0,-30,-39,-54,-21,-14,-14,-43,-37,-37,-37,-20,0,0,0,0,-8,-38,8,0,0,0,4,0,10,-19,-17,-16,-17,-17,-15,-14,0,0,0,0,0,0,0,0,271,-8,-8,-8,-8,-8,-8,-8,-8,-8,-8,-8,-8,-8,-8,-14,-14,-14,-21,-22]} 1. e4 {[%emt 0:00:03]} c5 {[%emt 0:00:05]} 2. Nf3 {[%emt 0:00:05]} d6 {[%emt 0:00:04]} 3. d4 {[%emt 0:00:06]} cxd4 {[%emt 0:00:04]} 4. Nxd4 {[%emt 0:00:06]} Nf6 {[%emt 0:00:05]} 5. Nc3 {[%emt 0:00:08]} a6 {[%emt 0:00:03]} 6. Bg5 {[%emt 0:00:14]} Nbd7 {[%emt 0:00:09]} 7. Be3 {[%emt 0:01:14]} e6 {[%emt 0:00:07]} 8. g4 {[%emt 0:00:04]} h6 {[%emt 0:00:06]} 9. a4 {[%emt 0:00:12]} b6 {[%emt 0:00:50]} 10. h4 {[%emt 0:00:47]} Bb7 {[%emt 0:01:01]} 11. Bg2 {[%emt 0:00:09]} Ne5 {[%emt 0:00:44]} 12. g5 {[%emt 0:01:38]} hxg5 {[%emt 0:00:06]} 13. hxg5 {[%emt 0:00:07]} Rxh1+ {[%emt 0:00:03]} 14. Bxh1 {[%emt 0:00:08]} Nfd7 {[%emt 0:00:23]} 15. b3 {[%emt 0:09:17]} Qc7 {[%emt 0:06:17]} 16. Qd2 {[%emt 0:08:46]} Rc8 {[%emt 0:08:10]} 17. Nde2 {[%emt 0:11:43]} Ng4 {[%emt 0:01:05]} 18. Bd4 {[%emt 0:02:35]} (18. Bf4 {keeps more tension.} Qc5 19. f3 Qf2+ 20. Kd1) 18... e5 {[%emt 0:00:54]} 19. Be3 {[%emt 0:00:12]} Nxe3 {[%emt 0:09:18]} 20. Qxe3 {[%emt 0:00:12]} Nc5 {[%emt 0:04:00]} 21. Nd5 {[%emt 0:13:16]} Bxd5 {[%emt 0:01:07]} 22. exd5 {[%emt 0:00:05]} Be7 {[%emt 0:00:11]} 23. Kd2 {[%emt 0:08:59]} b5 {[%emt 0:05:18]} (23... g6 $15) 24. axb5 $11 {[%emt 0:09:40]} axb5 {[%emt 0:00:24]} 25. g6 {[%emt 0:00:09]} fxg6 {[%emt 0:01:49]} 26. b4 {[%emt 0:02:22]} Na4 {[%emt 0:05:44]} 27. Qd3 {[%emt 0:04:39]} Qc4 {[%emt 0:07:47]} ({Reject} 27... Kf7 $6 28. Be4 Bg5+ 29. Ke1 $16) 28. c3 {[%emt 0:03:51]} Qxd3+ {[%emt 0:02:14]} (28... Bg5+ {looks sharper.} 29. Kc2 Qxd3+ 30. Kxd3 Bh4) 29. Kxd3 {[%emt 0:00:09]} Kf7 {[%emt 0:00:14]} 30. Be4 {[%emt 0:00:30]} Bf6 {[%emt 0:04:16]} 31. Kc2 {[%emt 0:01:52]} Rc7 {[%emt 0:02:27]} 32. f3 {[%emt 0:03:37]} g5 {[%emt 0:00:55]} 33. Kb3 {[%emt 0:01:59]} g6 {[%emt 0:01:53]} 34. Bd3 {[%emt 0:00:56][%cal Oa1c1]} Nxc3 $2 {[%emt 0:01:15][%mdl 8192] [#]} 35. Nxc3 $2 {[%emt 0:01:12] [#]} ({White has to play} 35. Rc1 $1 $18 Nxd5 36. Be4 (36. Bxb5 $2 {is the wrong capture.} Rxc1 37. Nxc1 Ne3 $19)) 35... Rxc3+ $1 {[%emt 0:03:07] The position is equal.} 36. Kxc3 {[%emt 0:00:06]} e4+ {[%emt 0:00:04]} 37. Kd2 {[%emt 0:00:08]} Bxa1 {[%emt 0:00:05]} 38. Bxe4 {[%emt 0:00:07][%mdl 4096] Endgame. KB-KB} Kf6 {[%emt 0:00:13]} 39. Bd3 {[%emt 0:00:16]} Ke5 {[%emt 0:00:06]} 40. Bxb5 {[%emt 0:00:09]} Kd4 {[%emt 0:00:33]} 41. Bd3 {[%emt 0:00:24]} Bc3+ {[%emt 0:00:11]} 42. Ke2 {[%emt 0:00:04]} Bxb4 {[%emt 0:00:04]} 43. Bxg6 {[%emt 0:00:05]} Kxd5 {[%emt 0:00:05]} 44. Kd3 {[%emt 0:00:05] Weighted Error Value: White=0.16 (very precise) /Black=0.12 (very precise) .  Loses game:     	---       	Black=1      Missed win:     	White=1     	---        Mistake:       	---       	Black=1      Inaccurate:     	White=4     	Black=1      OK:         	White=18    	Black=21     Best:        	White=2     	Black=4} 1/2-1/2